fUSD/lending_fUSD_20240116
["ID","MTS","AMOUNT","RATE_DAILY","PERIOD"]
[311810962,1705423377382,50529.00867649,0.00021665,2]
[311810963,1705423378002,156.68133765,0.00021665,2]
[311810964,1705423378237,151.5,0.00021918,3]
[311810965,1705423378259,2348.5,0.00021918,3]
[311810966,1705423378289,6077.73592096,0.00021665,2]
[311810967,1705423380384,15689.27549142,0.00021665,2]
[311810968,1705423380465,155.0,0.00021665,2]
[311810969,1705423380729,256.28985269,0.00021665,2]
[311810970,1705423380773,1096.4632242,0.00021665,2]
[311810971,1705423385529,2177.59399029,0.00021448,2]
[311810972,1705423385717,1596.52538459,0.00017332,2]
[311810973,1705423388620,543.89806023,0.00021665,2]
[311810974,1705423389548,155.0,0.00021665,2]
[311810975,1705423390745,884.97645784,0.00021665,2]
[311810976,1705423391472,1238.17726162,0.00021665,2]
[311810977,1705423391685,155.0,0.00021665,2]
[311810978,1705423391861,3207.9940577,0.00022,2]
[311810979,1705423391890,1021.22851747,0.00021665,2]
[311810980,1705423392051,155.60662019,0.00021665,2]
[311810981,1705423393087,1032.77891752,0.00021665,2]
[311810982,1705423394126,281.55513314,0.00021665,2]
[311810983,1705423394155,18948.40984176,0.00021665,2]
[311810984,1705423394185,282.90032781,0.00021665,2]
[311810985,1705423395379,50492.56241729,0.00021665,2]
[311810986,1705423395819,300.0,0.00021797,2]
[311810987,1705423395870,500.0,0.00021665,2]
[311810988,1705423399158,1096.4632242,0.00021665,2]
[311810989,1705423399575,156.37681408,0.00021665,2]
[311810990,1705423400236,6070.51279396,0.00021665,2]
[311810991,1705423403676,2177.59399029,0.00021448,2]
[311810992,1705423404076,284.18685088,0.00021665,2]
[311810993,1705423404380,9871.15262965,0.00021665,2]
[311810994,1705423404454,266.6500919,0.00021665,2]
[311810995,1705423405362,270.57667193,0.00021665,2]
[311810996,1705423405710,1597.72739359,0.00017332,2]
[311810997,1705423405957,543.89806023,0.00021665,2]
[311810998,1705423406695,531.65892829,0.00021665,2]
[311810999,1705423409828,155.0,0.00021665,2]
[311811000,1705423411388,882.67839544,0.00021665,2]
[311811001,1705423411485,1031.58021436,0.00021665,2]
[311811002,1705423411674,50510.78554689,0.00021665,2]
[311811003,1705423412126,9718.15899682,0.00021665,2]
[311811004,1705423412152,9230.25084494,0.00021665,2]
[311811005,1705423412189,282.45033029,0.00021665,2]
[311811006,1705423416708,1094.71890456,0.00021665,2]
[311811007,1705423417901,500.0,0.00021665,2]
[311811008,1705423422584,1892.88295925,0.00021665,2]
[311811009,1705423423717,1595.46368675,0.00017332,2]
[311811010,1705423423965,542.64150318,0.00021665,2]
[311811011,1705423424040,284.18685088,0.00021665,2]
[311811012,1705423424713,531.87539742,0.00021665,2]
[311811013,1705423427774,155.0,0.0002,2]
[311811014,1705423429390,29619.44795897,0.00021665,2]
[311811015,1705423429530,2174.68543926,0.00021448,2]
[311811016,1705423430125,251.33642847,0.00021665,2]
[311811017,1705423431133,493.38170752,0.00021665,2]
[311811018,1705423436601,609.5088436,0.00021665,2]
[311811019,1705423437883,500.0,0.00021665,2]
[311811020,1705423440567,1892.88295925,0.00021665,2]
[311811021,1705423443831,155.0,0.0002,2]
[311811022,1705423444714,631.84565968,0.00021665,2]
[311811023,1705423447551,1831.11597489,0.00021448,2]
[311811024,1705423448080,171.24248031,0.00021665,2]
[311811025,1705423456601,609.5088436,0.00021665,2]
[311811026,1705423458726,188.41022636,0.00021665,2]
[311811027,1705423459874,500.0,0.00021665,2]
[311811028,1705423463785,155.0,0.0002,2]
[311811029,1705423473878,435.58369655,0.00022,2]
[311811030,1705423474619,338.05454542,0.00021665,2]
[311811031,1705423479882,500.0,0.00021665,2]
[311811032,1705423486163,168.24423955,0.0002,2]
[311811033,1705423497930,500.0,0.00021665,2]
[311811034,1705423573430,200.0,0.00021619,2]
[311811035,1705423629054,150.7,0.00021655,2]
[311811036,1705423722964,208.01,0.0001977,2]
[311811037,1705423740976,164.25,0.0002163,2]
[311811077,1705423787295,157.70899039,0.00021978,2]
[311811083,1705423810805,500.0,0.000205,2]
[311811095,1705423831703,-231.93292492,0.00022033,2]
[311811096,1705423831713,-208.01,0.00022034,2]
[311811097,1705423831722,-150.0,0.00022055,2]
[311811098,1705423831731,-621.59372413,0.00022078,2]
[311811099,1705423831741,-718.69,0.00022078,2]
[311811100,1705423831751,-271.97821892,0.00022078,2]
[311811101,1705423831764,-440.62178108,0.00022078,2]
[311811102,1705423831773,-710.35,0.00022078,2]
[311811103,1705423831782,-709.87,0.00022078,2]
[311811104,1705423831791,-366.40821892,0.00022079,2]
[311811105,1705423831803,-356.81178108,0.00022079,2]
[311811106,1705423831813,-734.04,0.00022079,2]
[311811107,1705423831822,-710.2,0.0002208,2]
[311811108,1705423831832,-726.13,0.00022081,2]
[311811109,1705423831842,-729.0,0.00022083,2]
[311811110,1705423831851,-721.38,0.00022088,2]
[311811111,1705423831860,-709.73,0.00022096,2]
[311811112,1705423831870,-162.7,0.00022136,2]
[311811113,1705423831879,-724.75,0.00022137,2]
[311811114,1705423831889,-712.48,0.00022189,2]
[311811115,1705423831898,-1000.0,0.000222,2]
[311811116,1705423831908,-162.7,0.00022279,2]
[311811117,1705423831917,-722.89,0.00022284,2]
[311811118,1705423831927,-157.70899038,0.00022285,2]
[311811119,1705423831936,-162.7,0.00022421,2]
[311811120,1705423831959,-715.91,0.00022463,2]
[311811121,1705423831976,-162.7,0.00022563,2]
[311811122,1705423832006,-157.70899038,0.00022592,2]
[311811124,1705423832016,-150.7,0.00022633,2]
[311811126,1705423832025,-162.7,0.00022706,2]
[311811128,1705423832035,-179.35421623,0.00022767,2]
[311811130,1705423832044,-721.76,0.00022795,2]
[311811131,1705423832054,-162.7,0.00022848,2]
[311811132,1705423832065,-1975.21099388,0.0002288,2]
[311811133,1705423832111,-1030.0,0.0002288,2]
[311811134,1705423832123,-60.07794266,0.0002288,2]
[311811135,1705423832133,-763.92205734,0.00022885,2]
[311811136,1705423832146,-4236.07794266,0.00022885,2]
[311811137,1705423832157,-221.42025406,0.00022885,2]
[311811138,1705423832170,-384.0,0.00022885,2]
[311811139,1705423832194,-394.57974594,0.00022885,2]
[311811140,1705423832204,-155.6276357,0.00022899,2]
[311811141,1705423832215,-157.70899038,0.00022899,2]
[311811142,1705423832225,-155.62763564,0.00022899,2]
[311811143,1705423832235,-155.62763564,0.00022899,2]
[311811144,1705423832246,-155.62763564,0.000229,2]
[311811145,1705423832258,-155.62763564,0.000229,2]
[311811146,1705423832270,-155.62763564,0.000229,2]
[311811147,1705423832281,-250.0,0.000229,2]
[311811148,1705423832292,-400.12618196,0.000229,2]
[311811149,1705423832303,-159.70074966,0.000229,2]
[311811150,1705423832314,-1189.39636399,0.000229,2]
[311811159,1705423837685,-151.86,0.000229,2]
[311811160,1705423837694,-400.1261819,0.00022926,2]
[311811161,1705423837704,-400.1261819,0.00022952,2]
[311811162,1705423837713,-400.1261819,0.00022979,2]
[311811163,1705423837723,-162.7,0.0002299,2]
[311811164,1705423837732,-157.07763095,0.00022996,2]
[311811165,1705423837742,-217.81068994,0.00022997,2]
[311811166,1705423837751,-20559.35756954,0.00022997,2]
[311811167,1705423837761,-155.0,0.00022998,2]
[311811168,1705423837774,-155.20777707,0.00022998,2]
[311811169,1705423837785,-186.44835477,0.00022998,2]
[311811170,1705423837794,-3188.36893674,0.00022998,2]
[311811171,1705423837804,-285.19932083,0.00022998,2]
[311811172,1705423837813,-157.25415656,0.00022998,2]
[311811173,1705423837822,-523.33688238,0.00022998,2]
[311811174,1705423837831,-236.17727712,0.00022998,2]
[311811175,1705423837841,-1518.80576733,0.00022998,2]
[311811176,1705423837851,-207.69813508,0.00022998,2]
[311811177,1705423837861,-155.45029928,0.00022998,2]
[311811178,1705423837870,-460.22942243,0.00022998,2]
[311811179,1705423837879,-239.50668344,0.00022998,2]
[311811180,1705423837889,-336.93860005,0.00022998,2]
[311811181,1705423837898,-650.93242009,0.00022998,2]
[311811182,1705423837907,-1386.55738836,0.00022998,2]
[311811183,1705423837916,-278.70241203,0.00022998,2]
[311811184,1705423837925,-156.6856775,0.00022998,2]
[311811185,1705423837934,-203.02938773,0.00022998,2]
[311811186,1705423837944,-346.14918287,0.00022998,2]
[311811187,1705423837953,-542.58158419,0.00022998,2]
[311811188,1705423837962,-521.17755723,0.00022998,2]
[311811189,1705423837971,-341.38738641,0.00022998,10]
[311811190,1705423837981,-341.38738641,0.00022998,10]
[311811191,1705423837990,-45662.5118779,0.00022998,2]
[311811237,1705423838848,-195085.98447222,0.00022998,2]
[311811238,1705423838871,-5824.80000109,0.00022998,2]
[311811239,1705423838890,-1539.384,0.00022998,2]
[311811240,1705423838902,-2018.13579241,0.00022998,2]
[311811242,1705423840146,-261.355,0.00022998,2]
[311811243,1705423840322,-1467.0289,0.00022998,2]
[311811244,1705423840940,-270.31967404,0.00022998,2]
[311811246,1705423840951,-8854.67808001,0.00022998,2]
[311811248,1705423840963,-178000.0,0.00022998,2]
[311811257,1705423843278,-468.32443079,0.00022998,2]
[311811258,1705423843397,-1770.95332803,0.00022998,2]
[311811259,1705423843421,-1077.19,0.00022998,2]
[311811260,1705423843466,-453.60660035,0.00022998,2]
[311811261,1705423843478,-3219.9853381,0.00022998,2]
[311811262,1705423843529,-1177.739471,0.00022998,2]
[311811263,1705423843542,-1208.228,0.00022998,2]
[311811264,1705423843553,-399.01457388,0.00022998,2]
[311811274,1705423845887,-1014.0,0.00022997,2]
[311811275,1705423845898,-4076.62475993,0.00022998,2]
[311811276,1705423845920,-1287.13987599,0.00022998,2]
[311811277,1705423846033,-9801.31324723,0.00022998,2]
[311811278,1705423846267,-9904.92760838,0.00022998,2]
[311811294,1705423869419,1000.0,0.000219,2]
[311811295,1705423878629,152.23605397,0.00021,2]
[311811296,1705423879427,189.49317273,0.00020696,2]
[311811297,1705423891877,535.99952943,0.0001,2]
[311811298,1705423896493,8000.0,0.00011,2]
[311811299,1705423907707,150.0,0.00021999,2]
[311811300,1705423911198,166.91,0.00021964,2]
[311811301,1705423911667,544.40683217,0.00020696,7]
[311811302,1705423913940,9808.1958871,6.94e-05,2]
[311811303,1705423916512,1000.0,0.0002195,2]
[311811304,1705423972080,482.0192,0.00021978,2]
[311811305,1705423974788,155.27,0.00021924,2]
[311811306,1705423976188,150.0,0.00021999,2]
[311811307,1705423981447,500.0,0.00021938,2]
[311811308,1705423998026,288.24,0.00021938,2]
[311811309,1705424052349,4334.75899072,0.00012,30]
[311811310,1705424052376,1000.0,0.00012,30]
[311811311,1705424052398,1328.37550089,0.00012,30]
[311811312,1705424065701,154.999998,0.00022,2]
[311811313,1705424135997,269.86,0.00021895,2]
[311811314,1705424166626,2000.0,0.00021876,2]
[311811315,1705424195646,252.24,0.00021853,2]
[311811316,1705424199676,221.55,0.00019926,2]
[311811317,1705424241090,2705.0,0.00021844,2]
[311811318,1705424281662,250.0,0.00021918,2]
[311811319,1705424331212,250.0,0.00021842,2]
[311811320,1705424355996,287.05,0.00021838,2]
[311811321,1705424362439,1852.42,0.00021838,2]
[311811322,1705424416863,200.0,0.00021838,2]
[311811323,1705424438812,500.0,0.00021867,2]
[311811324,1705424524222,415.18,0.00021869,2]
[311811325,1705424538349,302.29,0.00021869,2]
[311811326,1705424619067,275.06,0.00021774,2]
[311811327,1705424621849,2000.0,0.00021774,2]
[311811328,1705424634470,260.68,0.00019868,2]
[311811329,1705424661437,259.76787016,0.00021869,2]
[311811330,1705424671984,156.44,0.0002163,2]
[311811331,1705424679434,259.76787016,0.00019868,2]
[311811332,1705424686206,-360.75913577,0.00022039,2]
[311811333,1705424686237,-279.01375138,0.0002204,2]
[311811334,1705424686262,-231.93292492,0.00022041,2]
[311811335,1705424686287,-3125.43380734,0.00022053,2]
[311811336,1705424686316,-317.05,0.00022074,2]
[311811337,1705424686341,-3188.36893674,0.00022076,2]
[311811338,1705424686371,-260.68,0.00022132,2]
[311811339,1705424686398,-205.0,0.00022133,2]
[311811340,1705424686425,-317.05,0.00022134,2]
[311811341,1705424686451,-156.84,0.0002217,2]
[311811342,1705424686477,-156.44,0.00022171,2]
[311811343,1705424686503,-317.05,0.00022195,2]
[311811344,1705424686529,-317.05,0.00022255,2]
[311811345,1705424686556,-2471.25996537,0.00022306,2]
[311811346,1705424686581,-317.05,0.00022316,2]
[311811347,1705424686608,-317.05,0.00022376,2]
[311811348,1705424686632,-189.97,0.00022392,2]
[311811349,1705424686657,-705.41846479,0.000224,2]
[311811350,1705424686684,-317.05,0.00022437,2]
[311811351,1705424686712,-317.05,0.00022497,2]
[311811352,1705424688016,200.0,0.00021895,2]
[311811353,1705424699502,259.76787016,0.00019868,2]
[311811354,1705424700067,360.75913577,0.00018238,2]
[311811355,1705424722043,238.41808142,0.00018236,2]
[311811356,1705424724982,596.85579208,0.00021656,2]
[311811357,1705424725469,211.7207442,0.00018238,2]
[311811358,1705424727286,164.07,0.00021854,2]
[311811359,1705424752027,-499.99,0.00022515,2]
[311811360,1705424752055,-150.99,0.00022515,2]
[311811361,1705424752081,-735.24,0.00022515,2]
[311811362,1705424752107,-151.09543116,0.00022518,2]
[311811363,1705424752133,-735.81,0.00022529,2]
[311811364,1705424752171,-317.05,0.00022558,2]
[311811365,1705424752197,-611.12,0.00022576,2]
[311811366,1705424752222,-1578.72,0.00022576,2]
[311811367,1705424752248,-151.09543116,0.00022613,2]
[311811368,1705424752280,-317.05,0.00022618,2]
[311811369,1705424752306,-317.05,0.00022679,2]
[311811370,1705424765832,446.94457531,0.000227,2]
[311811371,1705424778993,250.0,0.00021922,2]
[311811372,1705424788579,306.4,0.00021892,2]
[311811373,1705424789410,7099.91,0.00021892,2]
[311811374,1705424817452,483.68814411,0.000227,2]
[311811375,1705424840475,1852.42,0.00021874,2]
[311811376,1705424851695,14120.57,0.00021869,2]
[311811377,1705424857549,157.56,0.00022088,2]
[311811378,1705424870756,840.0,0.00021864,2]
[311811379,1705424880239,446.94457531,0.000227,2]
[311811386,1705424913036,16871.0,0.00022541,2]
[311811391,1705424948867,500.0,0.00021851,2]
[311811451,1705424973275,-151.09543116,0.00022709,2]
[311811452,1705424973299,-723.59,0.00022712,2]
[311811453,1705424973325,-156.44,0.00022712,2]
[311811454,1705424973350,-723.01,0.00022712,2]
[311811455,1705424973376,-245.86456884,0.00022713,2]
[311811456,1705424973808,-464.12543116,0.00022713,2]
[311811457,1705424973835,-709.7,0.00022714,2]
[311811458,1705424973859,-723.14,0.00022716,2]
[311811459,1705424973882,-103.03456884,0.00022718,2]
[311811460,1705424974336,-619.66543116,0.00022718,2]
[311811461,1705424981557,1079.1827,0.000227,2]
[311811462,1705424983550,155.62763564,0.000227,2]
[311811463,1705425021687,145.5242332,0.00021884,2]
[311811464,1705425021708,476.18233369,0.00021884,2]
[311811465,1705425025042,573.13181691,0.00021656,2]
[311811466,1705425025548,254.5523337,0.00022718,2]
[311811467,1705425027964,696.1335157,0.00021887,2]
[311811468,1705425027985,2000.0,0.00021887,2]
[311811469,1705425028006,2000.0,0.00021887,2]
[311811470,1705425028026,2000.0,0.00021887,2]
[311811471,1705425028047,2000.0,0.00021887,2]
[311811472,1705425028067,2000.0,0.00021887,2]
[311811473,1705425028088,2000.0,0.00021887,2]
[311811474,1705425028110,2000.0,0.00021887,2]
[311811475,1705425028130,2000.0,0.00021887,2]
[311811476,1705425028150,2000.0,0.00021887,2]
[311811477,1705425028170,2000.0,0.00021887,2]
[311811478,1705425028191,2000.0,0.00021887,2]
[311811479,1705425028211,1203.8664843,0.00021887,2]
[311811480,1705425029194,582.23758142,0.00022718,2]
[311811481,1705425029323,158.89035909,0.00021656,2]
[311811482,1705425030396,55.00557519,0.00022698,2]
[311811483,1705425030418,477.20002481,0.00022698,2]
[311811484,1705425030777,155.0,0.00020446,2]
[311811485,1705425031485,269.89826797,0.00022718,2]
[311811509,1705425031899,-715.13,0.00022722,2]
[311811511,1705425031910,-709.82,0.00022722,2]
[311811513,1705425031919,-652.64041131,0.00022722,2]
[311811518,1705425031962,-74.00958869,0.00022722,2]
[311811520,1705425031972,-729.72,0.00022726,2]
[311811522,1705425031981,-61.89041131,0.00022733,2]
[311811525,1705425031993,-653.83958869,0.00022733,2]
[311811527,1705425032003,-317.05,0.0002274,2]
[311811529,1705425032013,-156.84,0.00022766,2]
[311811530,1705425032023,-499.99,0.00022766,2]
[311811532,1705425032032,-4225.5847978,0.00022796,2]
[311811534,1705425032048,-392.11495475,0.00022796,2]
[311811535,1705425032058,-515.82504525,0.00022797,2]
[311811536,1705425032069,-3301.68748327,0.00022797,2]
[311811537,1705425032080,-851.74702636,0.00022797,2]
[311811538,1705425032091,-30908.43115406,0.00022797,2]
[311811539,1705425032104,-2220.8144468,0.00022797,2]
[311811540,1705425032201,-1106.375,0.00022797,2]
[311811541,1705425032217,-25798.03493498,0.00022797,2]
[311811544,1705425032229,-1826.40686088,0.00022797,2]
[311811547,1705425032258,-300.2996415,0.00022797,2]
[311811548,1705425033444,1095.89797255,0.00020516,5]
[311811550,1705425037879,-880.88,0.00022797,2]
[311811551,1705425037892,-58659.6061951,0.00022797,2]
[311811557,1705425037987,-1334.25292,0.00022797,2]
[311811558,1705425037999,-270.5502,0.00022797,2]
[311811559,1705425038012,-1341.92026432,0.00022797,2]
[311811560,1705425038022,-231.67297759,0.00022798,2]
[311811561,1705425038031,-1960.29562313,0.00022798,2]
[311811562,1705425038052,-1253.85624574,0.00022798,2]
[311811563,1705425038063,-27665.29403113,0.00022798,2]
[311811564,1705425038073,-881.7444,0.00022798,2]
[311811565,1705425038083,-155.0,0.000228,2]
[311811566,1705425038093,-300.0,0.000228,2]
[311811567,1705425038103,-204.7651,0.000228,2]
[311811568,1705425038114,-14312.19646887,0.000228,2]
[311811569,1705425038137,-44137.32884338,0.000228,2]
[311811570,1705425038169,-414.9255,0.000228,2]
[311811571,1705425038184,-260744.27138775,0.000228,2]
[311811572,1705425038193,-317.05,0.000228,2]
[311811573,1705425038202,-151.09543116,0.00022804,2]
[311811574,1705425038212,-317.05,0.00022861,2]
[311811575,1705425038221,-306.4,0.00022871,2]
[311811577,1705425038230,-438.9522,0.00022897,2]
[311811578,1705425038239,-1044.62291264,0.00022897,2]
[311811579,1705425038248,-1000.0,0.00022898,2]
[311811580,1705425038258,-266.75078797,0.00022899,2]
[311811581,1705425038267,-151.09543116,0.00022899,2]
[311811582,1705425038276,-266.75078793,0.00022899,2]
[311811583,1705425038285,-266.75078793,0.00022899,2]
[311811585,1705425038295,-266.75078793,0.00022899,2]
[311811587,1705425038304,-266.75078793,0.00022899,2]
[311811589,1705425038313,-266.75078793,0.00022899,2]
[311811591,1705425038323,-266.75078793,0.000229,2]
[311811593,1705425038332,-266.75078793,0.000229,2]
[311811595,1705425038342,-266.75078793,0.000229,2]
[311811596,1705425038351,-266.75078793,0.000229,2]
[311811597,1705425038362,-266.75078793,0.000229,2]
[311811598,1705425038372,-250.0,0.000229,2]
[311811599,1705425038381,-266.75078793,0.000229,2]
[311811600,1705425038391,-1924.3,0.000229,2]
[311811601,1705425038400,-3110.74091117,0.000229,2]
[311811602,1705425038409,-3110.74091117,0.000229,2]
[311811603,1705425038419,-3110.74091117,0.000229,2]
[311811604,1705425038429,-159.70074966,0.000229,2]
[311811605,1705425038438,-151.58,0.000229,2]
[311811606,1705425038447,-317.05,0.00022921,2]
[311811607,1705425038457,-215.397955,0.00022974,2]
[311811608,1705425038466,-317.05,0.00022982,2]
[311811609,1705425038475,-942.80167768,0.00022995,2]
[311811610,1705425038484,-449.62047594,0.00022995,2]
[311811611,1705425038493,-285.09845267,0.00022995,2]
[311811612,1705425038503,-5690.6930067,0.00022995,2]
[311811613,1705425038513,-248.55625965,0.00022995,2]
[311811614,1705425038522,-386.21227144,0.00022995,2]
[311811615,1705425038532,-226.54801089,0.00022995,2]
[311811616,1705425038541,-2295.54641658,0.00022996,2]
[311811617,1705425038551,-383.76405384,0.00022996,2]
[311811618,1705425038560,-1223.73555236,0.00022996,2]
[311811619,1705425038569,-155.0,0.00022997,2]
[311811620,1705425038579,-663.49862678,0.00022997,2]
[311811621,1705425038588,-1135.7914354,0.00022997,2]
[311811622,1705425038597,-2000.0,0.00022998,2]
[311811623,1705425038608,-200.0,0.00022998,2]
[311811624,1705425038618,-200.0,0.00022998,2]
[311811626,1705425038627,-587103.36004558,0.00022998,2]
[311811627,1705425038643,-293420.59561298,0.00022998,2]
[311811628,1705425038653,-276243.98155406,0.00022999,2]
[311811629,1705425038679,-1089.51217539,0.00022999,2]
[311811636,1705425040302,-434.88,0.00022999,2]
[311811638,1705425040362,-434.19402328,0.00022999,2]
[311811639,1705425040373,-1079.02696979,0.00022999,2]
[311811640,1705425040385,-881.80562,0.00022999,2]
[311811641,1705425040397,-33445.7049365,0.00022999,2]
[311811642,1705425040412,-4704.19,0.00022999,2]
[311811643,1705425040947,-510.52346354,0.00022999,2]
[311811644,1705425040959,-311.34725538,0.00022999,2]
[311811645,1705425041057,-489.47653646,0.00022999,2]
[311811646,1705425041069,-290.39991326,0.00022999,2]
[311811653,1705425042904,-543345.0365589,0.00022999,2]
[311811654,1705425042918,-466574.24225401,0.00022999,2]
[311811655,1705425042932,-978.33015606,0.00022999,2]
[311811656,1705425042944,-544.10587771,0.00022999,2]
[311811657,1705425042966,-297.42370457,0.00022999,2]
[311811658,1705425042977,-2324.96183043,0.00022999,2]
[311811659,1705425042990,-446.38202782,0.00022999,2]
[311811660,1705425043001,-1745.48,0.00022999,2]
[311811661,1705425043012,-10582.53620013,0.00022999,2]
[311811662,1705425043023,-601.5786431,0.00022999,2]
[311811663,1705425043034,-396.74077807,0.00022999,2]
[311811664,1705425043057,-431.79686796,0.00022999,2]
[311811665,1705425043104,-551.19395689,0.00022999,2]
[311811666,1705425043124,-1228.15636633,0.00022999,2]
[311811667,1705425043200,-10807.0,0.00022999,2]
[311811668,1705425043212,-2364.23337979,0.00022999,2]
[311811675,1705425046382,-14765.58111414,0.00022999,2]
[311811676,1705425046534,-3090.32308473,0.00022999,2]
[311811677,1705425046549,-27652.7152,0.00022999,2]
[311811678,1705425046579,-2547.5,0.00022999,2]
[311811679,1705425046593,-735.9234,0.00022999,2]
[311811680,1705425046605,-1660.0,0.00022999,2]
[311811681,1705425046619,-503.5,0.00022999,2]
[311811682,1705425046631,-842.0,0.00022999,2]
[311811683,1705425046654,-2576.1,0.00022999,2]
[311811684,1705425064139,2.00373467,0.00020467,2]
[311811685,1705425064161,558.24649667,0.00020467,2]
[311811686,1705425068495,1441.75350333,0.00022077,2]
[311811687,1705425068517,1746.61543341,0.00022077,2]
[311811688,1705425076794,155.42229511,0.00018464,2]
[311811689,1705425077037,97.96227148,0.00021847,2]
[311811690,1705425077058,1802.25465303,0.00021847,2]
[311811691,1705425077667,197.74534697,0.00022077,2]
[311811692,1705425077689,422.78384448,0.00022077,2]
[311811693,1705425078075,360.75913577,0.00018397,2]
[311811694,1705425081318,183.88728252,0.00020697,2]
[311811695,1705425085326,710.88041823,0.00021847,2]
[311811696,1705425089994,268.3291844,0.0002,2]
[311811697,1705425098078,53.3601346,0.00018397,2]
[311811698,1705425098099,255.14414535,0.00018397,2]
[311811699,1705425121099,1744.85585465,0.00022124,2]
[311811700,1705425121119,2000.0,0.00022124,2]
[311811701,1705425121139,2000.0,0.00022124,2]
[311811702,1705425121158,2000.0,0.00022124,2]
[311811703,1705425121187,2000.0,0.00022124,2]
[311811704,1705425121209,167.72234883,0.00022124,2]
[311811705,1705425123014,156.09,0.00022356,2]
[311811706,1705425123261,156.09,0.00022605,2]
[311811707,1705425149002,176.23,0.00022,2]
[311811708,1705425150254,336.55772468,0.00022548,2]
[311811709,1705425155092,256.77,0.00022,2]
[311811710,1705425156293,256.77,0.00022137,2]
[311811711,1705425157593,256.77,0.00022274,2]
[311811712,1705425159087,236.99992649,0.00022411,2]
[311811713,1705425159109,25.4297147,0.00022411,2]
[311811714,1705425163686,625.20112938,0.00021981,2]
[311811715,1705425167806,250.0,0.00022145,2]
[311811716,1705425167869,280.14979655,0.00022668,2]
[311811717,1705425169305,819.21935937,0.000227,2]
[311811718,1705425169328,2000.0,0.000227,2]
[311811719,1705425169351,2000.0,0.000227,2]
[311811720,1705425169377,38394.58554063,0.000227,2]
[311811721,1705425180959,12664.76630232,0.000227,2]
[311811722,1705425194010,-2000.0,0.00022699,2]
[311811723,1705425194647,-2000.0,0.00022699,2]
[311811724,1705425195158,-242.40849757,0.00022698,2]
[311811725,1705425195178,-1757.59150243,0.00022699,2]
[311811726,1705425195720,-2000.0,0.00022699,2]
[311811727,1705425196345,-2000.0,0.00022699,2]
[311811728,1705425236756,261.15,0.00021968,2]
[311811729,1705425250609,742.57,0.00021942,2]
[311811730,1705425251612,250.0,0.00021942,2]
[311811731,1705425259312,163.55,0.00021925,2]
[311811732,1705425275127,359.56,0.00020007,2]
[311811733,1705425341414,10000.0,0.00021918,2]
[311811734,1705425418397,328.0,0.00021834,2]
[311811735,1705425510248,281911.0,0.00021436,2]
[311811736,1705425528405,2000.0,0.00021731,2]
[311811737,1705425536835,1851.0,0.00022,2]
[311811738,1705425544479,200.46728499,0.00021918,2]
[311811739,1705425560672,150.0,0.00021727,2]
[311811740,1705425565400,585.99,0.00021713,2]
[311811741,1705425573244,158.52,0.00021903,2]
[311811742,1705425636390,159.88,0.00021602,2]
[311811743,1705425636816,159.88,0.00021911,2]
[311811744,1705425663888,198.35484433,0.00021944,2]
[311811745,1705425668949,198.35484419,0.00021994,2]
[311811746,1705425674890,165.18,0.00017234,2]
[311811747,1705425725833,250.0,0.00021368,2]
[311811748,1705425733296,746.07,0.00021365,2]
[311811749,1705425750163,23900.0,0.00021334,2]
[311811750,1705425771339,279.69091136,0.00021999,2]
[311811751,1705425773856,150.0,0.00021999,2]